Cogmind - Beta 11 X7 @@@ ROGUE MODE // 2021.10.10 @ 23:22:12 Player: Runia Result: Self-destructed Performance ------------- Evolutions (1) 500 Regions Visited (5) 1000 Robots Destroyed (34) 170 Value Destroyed (804) 804 Prototype IDs (29) 580 Alien Tech Used (0) 0 Bonus (300) 300 TOTAL SCORE: 3354 Bonus ------- Aligned with FarCom 300 Cogmind --------- Core Integrity 356/400 Matter 237/300 Energy 265/265 System Corruption 0% Temperature Cool (0) Movement Rolling (135) Ox3 Location -8/Mines Parts ------- > --- POWER (1) -------- Improved Ion Engine > --- PROPULSION (3) --- Light Treads Light Treads Armored Wheel > --- UTILITY (2) ------ Large Storage Unit Light Armor Plating > --- WEAPON (3) ------- Autogun Autogun Autogun > --- INVENTORY (15) --- Light Treads Light Treads Improved Treads Cooling System Experimental Sensor Array Armor Integrity Analyzer Weapon Shielding Light Armor Plating Hacking Suite Chronowheel Light Assault Rifle Autogun Mini Grenade Launcher Plasma Cutter Peak State ------------ > --- POWER ------------ Improved Ion Engine > --- PROPULSION ------- Light Treads Light Treads Armored Wheel > --- UTILITY ---------- Large Storage Unit Light Armor Plating > --- WEAPON ----------- Autogun Autogun Autogun > --- INVENTORY -------- Light Treads Light Treads Improved Treads Cooling System Experimental Sensor Array Armor Integrity Analyzer Weapon Shielding Light Armor Plating Light Armor Plating Hacking Suite Chronowheel Light Assault Rifle Autogun Mini Grenade Launcher Plasma Cutter [Rating: 18] Favorites ----------- Power Ion Engine Engine Ion Engine Propulsion Light Treads Treads Light Treads Leg Aluminum Leg Wheel Armored Wheel Utility Large Storage Unit Device Improved Heat Sink Storage Large Storage Unit Protection Light Armor Plating Weapon Autogun Energy Gun Small Laser Ballistic Gun Autogun Launcher Mini Grenade Launcher Build | -11 -10 -9 -9 -9 -8 ------- Run | Scr Mat Mat Min Exi Min Slots Evolved 2 | . . 2 . . . Power . | . . . . . . Propulsion 1 | . . 1 . . . Utility . | . . . . . . Weapon 1 | . . 1 . . . Parts Attached 25 | . 12 9 1 . 3 Power 2 | . 1 . 1 . . Engine 2 | . 1 . 1 . . Core . | . . . . . . Reactor . | . . . . . . Propulsion 9 | . 3 6 . . . Treads 7 | . 2 5 . . . Leg 1 | . 1 . . . . Wheel 1 | . . 1 . . . Hover . | . . . . . . Flight . | . . . . . . Utility 8 | . 5 2 . . 1 Device 2 | . 2 . . . . Storage 2 | . 2 . . . . Processor . | . . . . . . Hackware . | . . . . . . Protection 4 | . 1 2 . . 1 Artifact . | . . . . . . Weapon 6 | . 3 1 . . 2 Energy Gun 1 | . 1 . . . . Energy Cannon . | . . . . . . Ballistic Gun 4 | . 2 1 . . 1 Ballistic Cannon . | . . . . . . Launcher 1 | . . . . . 1 Special Weapon . | . . . . . . Impact Weapon . | . . . . . . Slashing Weapon . | . . . . . . Piercing Weapon . | . . . . . . Special Melee Weapon . | . . . . . . Unidentified Prototypes . | . . . . . . Parts Lost 3 | . 1 . 1 . 1 Power 2 | . 1 . 1 . . Propulsion . | . . . . . . Utility 1 | . . . . . 1 Weapon . | . . . . . . Highest Loss Streak 1 | . 1 . 1 . 1 Average Slot Usage (%) 98 | . 96 97 100 100 99 Engine 11 | . 13 11 11 11 11 Treads 20 | . 14 24 22 22 22 Leg 3 | . 14 . . . . Wheel 6 | . . 6 11 11 11 Device 2 | . 8 . . . . Storage 11 | . 14 11 11 11 11 Protection 8 | . 2 11 11 11 10 Energy Gun 3 | . 14 . . . . Ballistic Gun 28 | . 13 33 33 33 32 Naked Turns . | . . . . . . Heaviest Build 39 | 11 34 37 39 39 39 Greatest Support 60 | 20 40 60 12 12 12 Greatest Overweight (x) 3 | . 1 3 3 3 3 Average Overweight (x) 2 | . . 1 3 3 3 Largest Inventory Capacity 15 | 8 15 15 15 15 15 Average Capacity 14 | 8 11 15 15 15 15 Most Carried 15 | 5 9 15 15 15 15 Average Carried 12 | 5 7 13 14 14 14 Final Capacity 15 | 8 15 15 15 15 15 Final Carried 15 | 4 9 15 15 15 14 Class Distribution -------------------- 63% | Tank 25% | Mutant 11% | Skirmisher Dominant Class ---------------- Mutant | -10/Materials Tank | -9/Materials Tank | -9/Mines Tank | -9/Exiles Skirmisher | -8/Mines Resources | -11 -10 -9 -9 -9 -8 ----------- Run | Scr Mat Mat Min Exi Min Matter Collected 993 | 200 120 427 172 . 74 Remotely . | . . . . . . Salvage Created 1061 | . 304 549 138 . 70 Parts 79 | . 24 39 9 . 7 Haulers Intercepted 3 | . . 3 . . . Recyclers Shooed 1 | . . 1 . . . Parts Field Recycled . | . . . . . . Retrieved Matter . | . . . . . . Parts Self-Destructed . | . . . . . . Prevented . | . . . . . . Kills | -11 -10 -9 -9 -9 -8 ------- Run | Scr Mat Mat Min Exi Min Combat Hostiles Destroyed 23 | . 5 7 6 . 5 Guns 18 | . 4 7 6 . 1 AOE 4 | . . . . . 4 Classes Destroyed 9 | . 3 4 1 . 1 Worker 1 | . . 1 . . . Builder 1 | . . 1 . . . Hauler 3 | . . 3 . . . Operator 1 | . 1 . . . . Watcher 5 | . 3 2 . . . Swarmer 8 | . . . 4 . 4 Grunt 11 | . 5 4 2 . . Sentry 3 | . . 3 . . . Hunter 1 | . . . . . 1 Best Kill Streak 6 | . 2 4 6 . 4 Combat Bots Only 6 | . 2 2 6 . 4 Max Kills in Single Turn 3 | . 1 1 2 . 3 Gunslinging 1 | . . . 1 . . Exploded 3 | . . . . . 3 Melee . | . . . . . . Uniques/NPCs Destroyed . | . . . . . . Combat | -11 -10 -9 -9 -9 -8 -------- Run | Scr Mat Mat Min Exi Min Damage Taken 966 | . 313 128 253 . 272 Core 126 | . 82 23 9 . 12 Absorbed by Shields . | . . . . . . Core Remaining (%) 83 | 100 67 . . . . Volleys Fired 84 | . 38 24 12 . 10 Largest 3 | . 2 3 3 . 3 Hottest 80 | . 80 69 69 . 69 Shots Fired 210 | . 76 72 36 . 26 Gun 208 | . 76 72 36 . 24 Cannon . | . . . . . . Launcher 2 | . . . . . 2 Special . | . . . . . . Kinetic 152 | . 20 72 36 . 24 Thermal 56 | . 56 . . . . Explosive 2 | . . . . . 2 Electromagnetic . | . . . . . . Robot Hit Streak 9 | . 9 6 8 . 6 Robot Miss Streak 6 | . 6 3 4 . 2 Penetration Max . | . . . . . . Secondary Targets 2 | . . . 2 . . Max Gunslinging Chain 1 | . . . 1 . . Shots Hit Robots 134 | . 50 45 20 . 19 Core Hits 51 | . 15 20 8 . 8 Critical Kills . | . . . . . . Critical Parts Destroyed . | . . . . . . Critical Strikes . | . . . . . . Melee Attacks . | . . . . . . Impact . | . . . . . . Slashing . | . . . . . . Piercing . | . . . . . . Sneak Attacks . | . . . . . . Combat Hostiles . | . . . . . . Follow-up Attacks . | . . . . . . Damage Inflicted 2068 | . 619 704 311 . 434 Guns 1820 | . 619 704 311 . 186 Cannons . | . . . . . . Explosions 240 | . . . . . 240 Melee . | . . . . . . Ramming 8 | . . . . . 8 Kinetic 1434 | . 233 704 311 . 186 Thermal 386 | . 386 . . . . Explosive 240 | . . . . . 240 Electromagnetic . | . . . . . . Impact . | . . . . . . Slashing . | . . . . . . Piercing . | . . . . . . Highest Corruption . | . . . . . . Average Corruption . | . . . . . . Corruption Purged . | . . . . . . Overload Shots . | . . . . . . Overflow Damage . | . . . . . . Projectiles . | . . . . . . Explosions . | . . . . . . Melee . | . . . . . . Knockbacks . | . . . . . . Impact . | . . . . . . Kinetic . | . . . . . . Secondary . | . . . . . . Self-Inflicted Damage 35 | . . . . . 35 Shots 1 | . . . . . 1 Rammed 2 | . . . . . 2 Targets Rammed 2 | . . . . . 2 Kicked . | . . . . . . Crushed . | . . . . . . Highest Temperature 183 | . 90 112 183 . 143 Average Temperature 50 | . 26 40 80 . 77 Received Heat Transfer 303 | . 195 51 57 . . Siege Activations . | . . . . . . Robots Corrupted . | . . . . . . Combat Hostiles . | . . . . . . Parts Fried . | . . . . . . Impact Corruptions . | . . . . . . Robots Melted 1 | . 1 . . . . Combat Hostiles 1 | . 1 . . . . Parts Melted 1 | . 1 . . . . Heat Transferred 875 | . 875 . . . . Parts Sabotaged . | . . . . . . Parts Stolen . | . . . . . . Parts Stripped . | . . . . . . Power Chain Reactions . | . . . . . . Missiles Intercepted . | . . . . . . Alert | -11 -10 -9 -9 -9 -8 ------- Run | Scr Mat Mat Min Exi Min Peak Influence 178 | . 141 178 149 . 139 Initial 4 | . . . 4 . . Average 47 | . 57 37 58 . 36 Maximum Alert Level . | . . . . . . Low Security (%) 100 | 100 100 100 100 . 100 Level 1 . | . . . . . . Level 2 . | . . . . . . Level 3 . | . . . . . . Level 4 . | . . . . . . Level 5 . | . . . . . . High Security . | . . . . . . Max Security . | . . . . . . Squads Dispatched . | . . . . . . Investigation . | . . . . . . Extermination . | . . . . . . Reinforcement . | . . . . . . Assault . | . . . . . . Garrison . | . . . . . . Intercept . | . . . . . . Construction Impeded . | . . . . . . Haulers Reinforced . | . . . . . . Active Scanning Responses . | . . . . . . Cargo Convoy Interrupts . | . . . . . . Stealth | -11 -10 -9 -9 -9 -8 --------- Run | Scr Mat Mat Min Exi Min Distress Signals 2 | . 1 1 . . . Communications Jammed . | . . . . . . Distress Signals . | . . . . . . Times Spotted 37 | . 14 11 7 . 5 Peak Tracking Total 4 | . 4 3 4 . 4 Tactical Retreats 1 | . . . 1 . . Traps | -11 -10 -9 -9 -9 -8 ------- Run | Scr Mat Mat Min Exi Min Traps Triggered . | . . . . . . Indirectly . | . . . . . . Trap Hack Attempts . | . . . . . . Triggered . | . . . . . . Disarmed . | . . . . . . Reprogrammed 6 | . . 6 . . . Reused 4 | . . 4 . . . Traps Extracted . | . . . . . . Installed . | . . . . . . Triggered 4 | . . 4 . . . Exploded 2 | . . . . 2 . Machines | -11 -10 -9 -9 -9 -8 ---------- Run | Scr Mat Mat Min Exi Min Machines Disabled . | . . . . . . Max in Single Turn . | . . . . . . Machines Sabotaged . | . . . . . . Garrisons Compromised . | . . . . . . Overloaded Fab Kills . | . . . . . . Fab Network Shutdowns . | . . . . . . Hacking | -11 -10 -9 -9 -9 -8 --------- Run | Scr Mat Mat Min Exi Min Machines Accessed 12 | . 5 5 . 2 . Terminals 10 | . 5 5 . . . Fabricators . | . . . . . . Repair Stations . | . . . . . . Recycling Units . | . . . . . . Scanalyzers . | . . . . . . Garrison Access . | . . . . . . Total Hacks 32 | . 9 21 . 2 . Successful 19 | . 6 11 . 2 . Failed 13 | . 3 10 . . . Catastrophic 2 | . . 2 . . . Database Lockouts . | . . . . . . Manual 11 | . 5 5 . 1 . Terminals 30 | . 9 21 . . . Fabricators . | . . . . . . Repair Stations . | . . . . . . Recycling Units . | . . . . . . Scanalyzers . | . . . . . . Garrison Access . | . . . . . . Terminal Hacks 15 | . 3 10 . 2 . Record 1 | . . . . 1 . Part Schematic 1 | . . 1 . . . Prototype ID Bank 4 | . 2 2 . . . Branch Access Points 1 | . . 1 . . . Terminal Index 1 | . . 1 . . . Unreport Threat 2 | . . 2 . . . Locate Traps 2 | . 1 1 . . . Reprogram Traps 1 | . . 1 . . . Hauler Manifests 1 | . . 1 . . . EX-Prototype ID Bank 1 | . . . . 1 . Fabricator Hacks . | . . . . . . Repair Station Hacks . | . . . . . . Recycling Unit Hacks . | . . . . . . Scanalyzer . | . . . . . . Garrison Access Hacks . | . . . . . . Unauthorized Hacks 4 | . 3 1 . . . Terminals 4 | . 3 1 . . . Assimilate 1 | . 1 . . . . Botnet 1 | . 1 . . . . Operators 2 | . 1 1 . . . Fabricators . | . . . . . . Repair Stations . | . . . . . . Recycling Units . | . . . . . . Scanalyzers . | . . . . . . Garrison Access . | . . . . . . Data Cores Recovered 1 | . 1 . . . . Used . | . . . . . . Hacking Detections 10 | . 5 5 . . . Full Trace Events . | . . . . . . Feedback Events . | . . . . . . Feedback Blocked . | . . . . . . Robot Schematics Acquired . | . . . . . . Robots Built . | . . . . . . Matter . | . . . . . . Time . | . . . . . . Total Robot Build Rating . | . . . . . . Part Schematics Acquired 1 | . . 1 . . . Parts Built . | . . . . . . Matter . | . . . . . . Time . | . . . . . . Total Part Build Rating . | . . . . . . Parts Repaired . | . . . . . . Time . | . . . . . . Parts Recycled . | . . . . . . Recycled Matter . | . . . . . . Retrieved Matter . | . . . . . . Retrieved Components . | . . . . . . Parts Scanalyzed . | . . . . . . Part Schematics Acquired . | . . . . . . Parts Damaged . | . . . . . . Bothacking | -11 -10 -9 -9 -9 -8 ------------ Run | Scr Mat Mat Min Exi Min Used RIF Installer . | . . . . . . Robots Hacked . | . . . . . . Non-combat . | . . . . . . Combat . | . . . . . . Robot Hacks Applied . | . . . . . . Relay Couplers Released . | . . . . . . Robots Rewired . | . . . . . . Allies Hacked . | . . . . . . Hacks Repelled . | . . . . . . Allies | -11 -10 -9 -9 -9 -8 -------- Run | Scr Mat Mat Min Exi Min Total Allies . | . . . . . . Largest Group . | . . . . . . Highest-Rated Group . | . . . . . . Highest-Rated Ally . | . . . . . . Total Orders . | . . . . . . Ally Attacks . | . . . . . . Total Damage . | . . . . . . Kills . | . . . . . . Allies Corrupted . | . . . . . . Allies Melted . | . . . . . . Intel | -11 -10 -9 -9 -9 -8 ------- Run | Scr Mat Mat Min Exi Min Robot Analysis Total . | . . . . . . Derelict Logs Recovered 1 | . . . 1 . . Drone Launches . | . . . . . . Drone Recoveries . | . . . . . . Exploration | -11 -10 -9 -9 -9 -8 ------------- Run | Scr Mat Mat Min Exi Min Turns Passed 3206 | 1 805 948 426 655 371 Spaces Moved 2070 | 1 474 582 288 474 251 Core . | . . . . . . Treads 433 | . 227 206 . . . Legs 248 | 1 247 . . . . Wheels 1389 | . . 376 288 474 251 Hover . | . . . . . . Flight . | . . . . . . Fastest Speed 120 | 120 120 135 135 135 135 Average Speed 138 | 120 139 143 135 135 135 Slowest Speed 200 | 120 200 160 135 135 135 Overloaded Moves . | . . . . . . Propulsion Burnouts . | . . . . . . Robots Hopped . | . . . . . . Cave-ins Triggered . | . . . . . . Exploration Rate (%) 53 | 2 66 48 83 71 50 Regions Visited 5 Branch Regions 3 Pre-discovered Areas 1 | . . . . 1 . Known Exits Taken 1 | . . 1 . . . Unknown Exits Taken 4 | 1 1 . 1 1 . Scrap Searched 3 | . . . 2 . 1 Spaces Dug . | . . . . . . Terrain Destroyed 17 | . . . . . 17 Melee . | . . . . . . Projectile . | . . . . . . AOE 17 | . . . . . 17 Terrain Rammed . | . . . . . . Walls Destroyed . | . . . . . . Machines Disabled . | . . . . . . Actions | -11 -10 -9 -9 -9 -8 --------- Run | Scr Mat Mat Min Exi Min Total 2271 | 2 549 658 307 489 266 Wait 35 | . 5 16 . 14 . Move 2065 | . 473 581 287 473 251 Hop . | . . . . . . Pick Up 31 | . 11 15 4 1 . Fast Attach 3 | . 2 1 . . . Attach 10 | . 7 1 1 . 1 Detach 1 | . 1 . . . . Swap 12 | . 3 7 . . 2 Drop 28 | 2 9 13 3 1 . Fire 84 | . 38 24 12 . 10 Melee . | . . . . . . Ram 2 | . . . . . 2 Kick . | . . . . . . Crush . | . . . . . . Escape Stasis . | . . . . . . Rewire . | . . . . . . Trap . | . . . . . . Miscellaneous . | . . . . . . Route ------- -11/Scrapyard -10/Materials (discovered 3 exits: *Mat x2 / [*Min]) -9/Materials (discovered 2 exits: *Min x2) -9/Mines (discovered 2 exits: [*Mat] / *Exi) -9/Exiles -8/Mines (discovered 1 exit: [*Mat]) History --------- Turn | Location | Event 2 | -11/Scrapyard | Discovered new exit (range 0) 2 | -11/Scrapyard | Entered Materials 92 | -10/Materials | Discovered new exit (range 7) 171 | -10/Materials | Discovered new exit (range 16) 308 | -10/Materials | Build established: Mutant 789 | -10/Materials | Discovered new exit (range 11) 807 | -10/Materials | Entered another Materials area 807 | -9/Materials | Evolved 2 slots: Propulsion x1, Weapon x1 1041 | -9/Materials | Identified exit to Mines 1106 | -9/Materials | Build established: Tank 1755 | -9/Materials | Entered Mines 1769 | -9/Mines | Learned 8 Materials zone layouts 1800 | -9/Mines | Found a damaged Exp. Sensor Array with a note attached 1803 | -9/Mines | Found Prototype Device 1887 | -9/Mines | Found a hidden stash of uninstalled traps 1976 | -9/Mines | Discovered new exit (range 7) 2174 | -9/Mines | Deemed a non-threat by the Exiles lab entrance 2176 | -9/Mines | Discovered new exit (range 5) 2181 | -9/Mines | Entered Exiles 2218 | -9/Exiles | Met 8R-AWN 2237 | -9/Exiles | Met EX-HEX 2312 | -9/Exiles | Met EX-DEC 2337 | -9/Exiles | Learned location of Zion (-6) 2396 | -9/Exiles | Discovered new exit (range 10) 2514 | -9/Exiles | Met EX-BIN 2531 | -9/Exiles | Aligned with FarCom system 2532 | -9/Exiles | Given EX-Vault access code 2564 | -9/Exiles | Opened EX-Vault 2593 | -9/Exiles | Warned to stay clear of 0b10 Research branches 2619 | -9/Exiles | Exiles lab attacked by MAIN.C 2690 | -9/Exiles | Found Chronowheel 2836 | -9/Exiles | Left Exiles lab with Chronowheel 2836 | -9/Exiles | Entered Mines 3140 | -8/Mines | Build established: Skirmisher 3191 | -8/Mines | Discovered new exit (range 10) 3207 | -8/Mines | Self-destructed Last Messages --------------- Slug penetrates Wall. Penetrated by Slug. Lgt. Armor Plating destroyed. H-55 Commando destroyed. Acquired 44 matter. Acquired 18 matter. K-01 Serf collects debris. Slammed into K-01 Serf. Slammed into T-07 Excavator. S-10 Pest destroyed. Acquired 9 matter. The unstable cave ceiling collapses. U-05 Engineer lays Concrete. U-05 Engineer builds a Wall. U-05 Engineer lays Concrete. R-06 Scavenger collects Lgt. Assault Rifle. U-05 Engineer lays Concrete. U-05 Engineer builds a Wall. U-05 Engineer lays Concrete. EXIT=FOUND Map ----- +----------------------------------------------------+ | ??????????### ### * ##???# #????? | | ????????????##### ###### = #???# #????? | | ????????????????####??#### [% #???# #????? | | ?????????????????????## # ##???# #???## | | ????????????????????## #????# #??## | | ???????????????????## #????# #### | | ??????????????????## #????# | | ??????????????????# % ##???####### | | ??????????????????# ###??????????## | | ??????????????????## ##????????????# | | ???????????????????# #????????????? | | ???????????????##### #????????????? | | ???????????????# ##????????????? | | ???????????????# ### ## #?????????????# | | ???????????????# #?## #? #??????????? | | ???????????????# #??## #? ????????? | | ???????????????# #???# #?###??????? | | ???????????????# #???# #?????????? ##### | | ???????????????# #???# #????????????????? | | ??????????????## #???# ????????????????? | | ?????????????## z #???# ???????????????? | | ???????????### #???#####???????????????? | | ?????????### ##??????????????????????? | | ?????????# ##?????????????????????? | | ??????# ## < #?????????????????????? | | ??????# ## ##?## @ #?????????????????????? | | ?????????##????## ##?????????????????????? | | ????????????????####??????????????????????? | | ??????????????????????????????????????????? | | ??????????????????????????????????????????? | | ??????????????????????????????????????????? | | ??????????????????????????????????????????? | | ??????????????????????????????????????????? | | ??????????????????????????????????????????? | | ??????????????????????????????????????????? | | ??????????????????????????????????????????? | | ??????????????????????????????????????????? | | ??????????????????????????????????????????? | | ??????????????????????????????????????????? | | ?????????l????????????????????????????????? | | ??????????g???????????????????????????????? | | ??????????g???????????????????????????????? | | ??????????????????????????????????????????? | | ??????????????????????????????????????????? | | ??????????????????????????????????????????? | | ??????????????????????????????????????????? | | ??????????????????????????????????????????? | | ??????????????????????????????????????????? | | ??????????????????????????????????????????? | | ??????????????????????????????????????????? | +----------------------------------------------------+ Best States ------------- Heat Dissipation 39 Energy Generation 12 Energy Capacity 265 Matter Stores 300 Matter Capacity 300 Sight Range 16 Terrain Scan Density 10 Armor Coverage 150 Evasion (%) 55 Recoil Reduction 3 Item Schematics ----------------- Hcp. Storage Unit | -9/Materials | Hacked Robot Schematics ------------------ None Fabricated ------------ Nothing Alien Tech Used ----------------- None Achievements -------------- None Challenges ------------ None Game ------ Seed SuspensionCompactNanovents Manual? 0 Play Time 00:20:01 Cumulative 365.7 hours Start 2021.10.10 @ 22:44:16 End 2021.10.10 @ 23:22:12 Sessions 1 Manual Loads 0 Difficulty Rogue Special Mode None Game No. 384 Rogue 384 Adventurer 0 Explorer 0 Win Type - Total 7 Types 6/0/0/1/0/0/0/0/0 Lore% 79 Gallery% 91 Achievement% 69 Wizard Run 0 Options --------- ASCII 0 Keyboard 0 Movement Mouse Keybinds 1 Fullscreen 2 Font 24/Smallcaps Map View 76x50 Tactical HUD 1 Map Filters NONE Filters NONE Steam 1 RUN: e7989e85-a14e-47ef-9047-f103491b07fd